bitfinex-derivatives/quotes_BTCF0:USTF0_20241003
["timestamp","ask_amount","ask_price","bid_price","bid_amount"]
[1727975730636,0.3668,60428.0,60427.0,0.273748]
[1727975730839,0.3658,60428.0,60427.0,0.272748]
[1727975731030,0.3658,60428.0,60427.0,1.369228]
[1727975731031,0.008,60428.0,60427.0,1.369228]
[1727975731429,0.003,60428.0,60427.0,1.369228]
[1727975731632,0.009,60428.0,60427.0,0.770228]
[1727975731831,0.009,60428.0,60427.0,1.370228]
[1727975732043,0.003,60428.0,60427.0,0.769228]
[1727975732339,0.008,60428.0,60427.0,0.769228]
[1727975732842,0.005,60428.0,60427.0,0.769228]
[1727975733039,0.005,60428.0,60427.0,0.082748]
[1727975733040,0.007,60428.0,60427.0,0.082748]
[1727975733440,0.007,60428.0,60427.0,0.272748]
[1727975733636,0.007,60428.0,60427.0,0.082748]
[1727975734040,0.007,60428.0,60427.0,0.272748]
[1727975739438,0.007,60428.0,60427.0,0.082748]
[1727975739641,0.3678,60428.0,60416.0,0.41016643]
[1727975739840,0.3678,60428.0,60413.0,0.06575093]
[1727975739841,0.272752,60425.0,60414.0,0.04936643]
[1727975740047,0.272752,60425.0,60413.0,0.02729837]
[1727975740048,0.19,60416.0,60413.0,0.082767]
[1727975740344,0.082769,60412.0,60410.0,0.04936643]
[1727975740642,0.2665,60411.0,60407.0,0.41016643]
[1727975740848,0.2665,60411.0,60410.0,0.27277]
[1727975741249,0.05081297,60411.0,60410.0,0.27277]
[1727975741545,0.26577428,60411.0,60410.0,0.27277]
[1727975741748,0.26577428,60411.0,60410.0,0.28477]
[1727975742135,0.05081297,60411.0,60410.0,0.28477]
[1727975742350,0.31831297,60411.0,60410.0,0.09477]
[1727975742647,0.40108297,60411.0,60410.0,0.012]
[1727975743361,0.46045753,60411.0,60410.0,0.012]
[1727975743541,0.46145753,60411.0,60410.0,0.106771]
[1727975743849,0.40208297,60411.0,60410.0,0.094771]
[1727975744053,0.40208297,60411.0,60410.0,0.012]
[1727975744555,0.40108297,60411.0,60410.0,0.003]
[1727975744849,0.40108338,60411.0,60410.0,0.003]
[1727975745146,0.40108338,60411.0,60401.0,0.02740763]
[1727975745147,0.082776,60407.0,60401.0,0.19]
[1727975745343,0.082776,60407.0,60406.0,0.082777]
[1727975745550,0.13358918,60407.0,60406.0,0.082777]
[1727975745939,0.05081318,60407.0,60406.0,0.082777]
[1727975747046,0.05181318,60407.0,60406.0,0.082777]
[1727975747253,0.05181318,60407.0,60401.0,0.201]
[1727975747442,0.05081318,60406.0,60401.0,0.011]
[1727975747642,0.05081318,60405.0,60403.0,0.19]
[1727975747847,0.05081318,60404.0,60403.0,0.272781]
[1727975748357,0.56298833,60411.0,60407.0,0.082775]
[1727975748552,0.48016296,60411.0,60410.0,0.082771]
[1727975748752,0.48016296,60411.0,60410.0,0.54338184]
[1727975749443,0.48016296,60411.0,60410.0,0.3624498]
[1727975749960,0.082757,60421.0,60415.0,0.082765]
[1727975750246,0.082757,60421.0,60415.0,0.3624438]
[1727975751240,0.3608,60424.0,60415.0,0.3624438]
[1727975751743,0.4927,60424.0,60415.0,0.3624438]
[1727975751943,0.3648,60416.0,60415.0,0.3624438]
[1727975752749,0.3648,60416.0,60415.0,0.8590038]
[1727975752946,0.3648,60416.0,60415.0,0.65826653]
[1727975753160,0.3658,60416.0,60415.0,0.65826653]
[1727975753349,0.3658,60416.0,60415.0,0.3624438]
[1727975753748,0.3658,60416.0,60415.0,0.51601735]
[1727975753948,0.3658,60416.0,60415.0,0.37148079]
[1727975754559,0.448563,60416.0,60415.0,0.37148079]
[1727975754761,0.3658,60416.0,60415.0,0.21792392]
[1727975755055,0.3618,60416.0,60415.0,0.31931377]
[1727975755554,0.3658,60416.0,60415.0,0.21792392]
[1727975755862,0.3648,60416.0,60415.0,0.21392392]
[1727975756354,0.3608,60416.0,60415.0,0.090765]
[1727975756565,0.443563,60416.0,60415.0,0.003]
[1727975756746,0.443563,60416.0,60415.0,0.004]
[1727975757052,0.49437377,60416.0,60415.0,0.004]
[1727975757451,0.443563,60416.0,60415.0,0.004]
[1727975757756,0.443563,60416.0,60415.0,0.003]
[1727975758142,0.567763,60416.0,60415.0,0.003]
[1727975758346,0.571763,60416.0,60415.0,0.001]
[1727975758741,0.571763,60416.0,60410.0,0.082771]
[1727975758942,0.572763,60416.0,60410.0,0.082771]
[1727975759155,0.49,60416.0,60408.0,0.082774]
[1727975759351,0.082773,60409.0,60408.0,0.082774]
[1727975760053,0.19,60414.0,60403.0,0.02635184]
[1727975760247,0.082777,60407.0,60406.0,0.082777]
[1727975761344,0.001,60409.0,60408.0,0.082774]
[1727975761749,0.1924834,60426.0,60408.0,0.082774]
[1727975761750,0.0024834,60426.0,60418.0,0.08276]
[1727975762062,0.61904865,60436.0,60425.0,0.082751]
[1727975762358,0.082739,60434.0,60430.0,0.19]
[1727975762556,0.082741,60432.0,60430.0,0.19]
[1727975762855,0.49094865,60436.0,60425.0,0.082751]
[1727975762856,0.49094865,60436.0,60425.0,0.19]
[1727975763059,0.082748,60427.0,60417.0,0.19]
[1727975763259,0.19,60430.0,60424.0,0.082752]
[1727975763466,0.210845,60429.0,60428.0,0.09835128]
[1727975763653,0.210845,60429.0,60428.0,0.12613033]
[1727975764150,0.082742,60432.0,60431.0,0.082741]
[1727975764357,0.082741,60433.0,60432.0,0.08274]
[1727975764558,0.1816739,60435.0,60434.0,0.082739]
[1727975764861,0.082739,60434.0,60433.0,0.04918672]
[1727975765269,0.082739,60434.0,60433.0,0.13192672]
[1727975765559,0.1816739,60435.0,60434.0,0.082739]
[1727975766161,0.1816739,60435.0,60434.0,0.14831971]
[1727975766355,0.2644109,60435.0,60434.0,0.082739]
[1727975766662,0.1816739,60435.0,60434.0,0.082739]
[1727975767047,0.1956739,60435.0,60434.0,0.083739]
[1727975767258,0.1956739,60435.0,60434.0,0.14929608]
[1727975767463,0.1956739,60435.0,60434.0,0.083739]
[1727975767778,0.1956739,60435.0,60434.0,1.30628482]
[1727975768063,0.1956739,60435.0,60434.0,1.4046361]
[1727975768266,0.2096739,60435.0,60434.0,1.30728482]
[1727975768857,0.2096739,60435.0,60434.0,0.83196755]
[1727975768858,0.2086739,60435.0,60434.0,0.83196755]
[1727975769365,0.024,60435.0,60434.0,0.30920717]
[1727975769661,0.024,60435.0,60434.0,0.21088482]
[1727975769857,0.024,60435.0,60434.0,0.29283027]
[1727975770257,0.024,60435.0,60434.0,0.084739]
[1727975770563,0.106737,60435.0,60434.0,0.06756056]
[1727975770758,0.024,60435.0,60434.0,0.13391862]
[1727975770958,0.024,60435.0,60434.0,0.084739]
[1727975771158,0.024,60435.0,60434.0,0.13391531]
[1727975771350,0.13419198,60435.0,60434.0,0.13391531]
[1727975771558,0.08337696,60435.0,60434.0,0.05234747]
[1727975774360,0.08337696,60435.0,60434.0,0.24234747]
[1727975776159,0.08337696,60435.0,60434.0,0.26862398]
[1727975776359,0.06793889,60438.0,60437.0,0.082734]
[1727975777961,0.05380552,60438.0,60437.0,0.083734]
[1727975778359,0.26848773,60438.0,60437.0,0.083734]
[1727975778557,0.26848661,60438.0,60437.0,0.083734]
[1727975778758,0.21768221,60438.0,60437.0,0.083734]
[1727975778960,0.003,60438.0,60437.0,0.083734]
[1727975779162,0.008,60438.0,60437.0,0.13388219]
[1727975779368,0.008,60438.0,60437.0,0.084734]
[1727975779664,0.2561696,60488.0,60437.0,0.084734]
[1727975779665,0.3608,60462.0,60457.0,0.082707]
[1727975779868,0.3608,60462.0,60457.0,0.272707]
[1727975780478,0.0272944,60473.0,60472.0,0.082687]
[1727975780674,0.0272944,60473.0,60472.0,0.272687]
[1727975780976,0.3608,60482.0,60481.0,0.082674]
[1727975781174,0.00248095,60488.0,60481.0,0.082674]
[1727975781175,0.00248095,60488.0,60481.0,0.272674]
[1727975781375,0.00248095,60488.0,60487.0,0.272666]
[1727975781885,0.00248095,60488.0,60483.0,0.082671]
[1727975782186,0.00248095,60488.0,60481.0,0.001]
[1727975782187,0.082666,60487.0,60481.0,0.001]
[1727975782373,0.204668,60486.0,60481.0,0.001]
[1727975782573,0.204668,60486.0,60475.0,0.19]
[1727975782574,0.3608,60482.0,60476.0,0.082681]
[1727975782885,0.3608,60482.0,60477.0,0.082679]
[1727975783582,0.3608,60482.0,60476.0,0.19]
[1727975783786,0.3608,60482.0,60481.0,0.19]
[1727975784087,0.3608,60482.0,60481.0,0.272674]
[1727975784479,0.00248095,60488.0,60487.0,0.082666]
[1727975784680,0.00248095,60488.0,60487.0,0.272666]
[1727975785984,0.00248095,60488.0,60487.0,0.273666]
[1727975785985,0.25693607,60488.0,60487.0,0.273666]
[1727975786286,0.25693607,60488.0,60487.0,0.274666]
[1727975786681,0.25445512,60488.0,60487.0,0.274666]
[1727975786883,0.40381847,60488.0,60487.0,0.19]
[1727975787091,0.08500377,60504.0,60503.0,0.082644]
[1727975787287,0.50764195,60507.0,60505.0,0.082641]
[1727975787592,0.50764195,60507.0,60506.0,0.37264]
[1727975787977,0.58407885,60507.0,60506.0,0.37264]
[1727975788795,0.58407885,60507.0,60506.0,0.37364]
[1727975788993,0.65196549,60507.0,60506.0,0.37364]
[1727975789691,0.57552859,60507.0,60506.0,0.37364]
[1727975789893,0.57552859,60507.0,60506.0,0.32526169]
[1727975790091,0.63485591,60507.0,60506.0,0.32526169]
[1727975790287,0.71129281,60507.0,60506.0,0.291]
[1727975790495,0.71129281,60507.0,60496.0,0.082653]
[1727975790496,0.62301396,60507.0,60496.0,0.082653]
[1727975790686,0.62301396,60507.0,60495.0,0.29]
[1727975790687,0.082646,60502.0,60495.0,0.29]
[1727975790990,0.082653,60497.0,60493.0,0.29]
[1727975791297,0.05932732,60496.0,60494.0,0.082656]
[1727975791479,0.05932732,60496.0,60493.0,0.29]
[1727975791793,0.002,60502.0,60495.0,0.001]
[1727975791991,0.002,60502.0,60500.0,0.082648]
[1727975792293,0.002,60507.0,60501.0,0.29]
[1727975792294,0.06788292,60506.0,60501.0,0.29]
[1727975792495,0.06788292,60506.0,60500.0,0.082648]
[1727975792496,0.001,60507.0,60506.0,0.08264]
[1727975793097,0.06788292,60510.0,60509.0,0.082636]
[1727975793295,0.0678803,60510.0,60509.0,0.082636]
[1727975793597,0.443433,60511.0,60509.0,0.082636]
[1727975793992,0.7858,60510.0,60506.0,0.001]
[1727975794192,0.7858,60510.0,60495.0,0.001]
[1727975794193,0.082638,60508.0,60495.0,0.001]
[1727975794400,0.082644,60504.0,60501.0,0.082646]
[1727975794798,0.082644,60503.0,60501.0,0.082646]
[1727975794998,0.003,60507.0,60494.0,0.29]
[1727975795199,0.08264,60507.0,60506.0,0.001]
[1727975795696,0.08264,60507.0,60489.0,0.082662]
[1727975795697,0.57844,60507.0,60500.0,0.082647]
[1727975795899,0.082646,60502.0,60501.0,0.001]
[1727975796195,0.082658,60493.0,60483.0,0.372671]
[1727975796389,0.082658,60493.0,60492.0,0.082659]
[1727975797293,0.082663,60490.0,60489.0,0.082663]
[1727975797595,0.082663,60490.0,60479.0,0.1259]
[1727975797596,0.082659,60493.0,60486.0,0.082667]
[1727975798197,0.085659,60493.0,60492.0,0.001]
[1727975798590,1.09592,60493.0,60483.0,0.08267]
[1727975798894,0.082672,60484.0,60483.0,0.08267]
[1727975799089,0.082675,60481.0,60480.0,0.082675]
[1727975799292,0.082681,60477.0,60476.0,0.082679]
[1727975800003,0.082681,60477.0,60471.0,0.02659216]
[1727975800004,0.082676,60480.0,60479.0,0.082675]
[1727975800204,0.3608,60498.0,60492.0,0.082659]
[1727975800398,0.082661,60491.0,60489.0,0.082663]
[1727975800712,0.082671,60484.0,60477.0,0.3608]
[1727975800997,0.004,60493.0,60477.0,0.3608]
[1727975800998,0.082664,60489.0,60477.0,0.3608]
[1727975801199,0.29,60488.0,60477.0,0.3608]
[1727975801408,0.082678,60478.0,60477.0,0.443479]
[1727975802000,0.082678,60478.0,60477.0,0.445479]
[1727975802397,0.082678,60478.0,60477.0,0.443479]
[1727975802592,0.3608,60483.0,60464.0,0.735736]
[1727975802892,0.3608,60483.0,60476.0,0.082681]
[1727975802893,0.21488,60477.0,60476.0,0.082681]
[1727975803096,0.17351087,60477.0,60476.0,0.082681]
[1727975803405,1.54771087,60477.0,60472.0,0.082686]
[1727975803706,1.54771087,60477.0,60464.0,0.6508]
[1727975803707,0.45163087,60477.0,60464.0,0.6508]
[1727975803895,0.082686,60473.0,60471.0,0.082687]
[1727975804092,0.082687,60472.0,60471.0,0.082687]
[1727975804801,0.45163087,60477.0,60470.0,0.082689]
[1727975804802,0.082681,60476.0,60470.0,0.082689]
[1727975805002,0.082686,60473.0,60471.0,0.082688]
[1727975805200,0.082691,60469.0,60468.0,0.082691]
[1727975805499,0.082691,60469.0,60464.0,0.6508]
[1727975805500,0.082687,60472.0,60471.0,0.007]
[1727975805706,0.45163087,60477.0,60471.0,0.007]
[1727975806003,0.45163087,60477.0,60476.0,0.082681]
[1727975806393,0.3608,60483.0,60482.0,0.082673]
[1727975806902,0.4915,60491.0,60479.0,0.6508]
[1727975807109,0.4915,60491.0,60489.0,0.082662]
[1727975807403,0.4915,60491.0,60490.0,0.082662]
[1727975808109,0.4935,60491.0,60486.0,0.082667]
[1727975808306,0.4935,60491.0,60481.0,0.29]
[1727975808508,0.574161,60491.0,60481.0,0.29]
[1727975808805,0.4955,60491.0,60490.0,0.001]
[1727975809004,0.55079913,60491.0,60486.0,0.29]
[1727975809306,0.14196213,60490.0,60488.0,0.082664]
[1727975809508,0.14196213,60490.0,60485.0,0.082668]
[1727975809509,0.082665,60488.0,60485.0,0.082668]
[1727975809697,0.05929913,60490.0,60481.0,0.005]
[1727975809904,0.08267,60484.0,60481.0,0.005]
[1727975810104,0.08267,60484.0,60479.0,0.3608]
[1727975810311,0.08267,60484.0,60482.0,0.082672]
[1727975810500,0.3608,60483.0,60482.0,0.082672]
[1727975810706,0.082673,60482.0,60481.0,0.002]
[1727975810895,0.082673,60482.0,60481.0,0.084674]
[1727975810896,0.30739913,60482.0,60481.0,0.084674]
[1727975811096,0.30739913,60482.0,60481.0,0.082674]
[1727975811403,0.39007213,60482.0,60481.0,0.082674]
[1727975811710,0.39007213,60482.0,60479.0,0.082676]
[1727975811711,0.082676,60480.0,60479.0,0.082676]
[1727975811908,0.14197513,60480.0,60479.0,0.082676]
[1727975813613,0.14197513,60480.0,60479.0,0.07540841]
[1727975814111,0.14397513,60480.0,60479.0,0.001]
[1727975814303,0.082681,60476.0,60475.0,0.082682]
[1727975814511,0.082681,60476.0,60472.0,0.082685]
[1727975814512,0.082686,60473.0,60472.0,0.082685]
[1727975814710,0.14198513,60473.0,60472.0,0.082685]
[1727975814912,0.082691,60469.0,60468.0,0.082692]
[1727975815605,0.082691,60469.0,60463.0,0.29]
[1727975815606,0.14198713,60472.0,60471.0,0.082688]
[1727975815914,0.3608,60473.0,60471.0,0.54286682]
[1727975815915,0.3028755,60473.0,60471.0,0.54286682]
[1727975816216,0.3028755,60473.0,60472.0,0.83286582]
[1727975816418,0.084676,60480.0,60472.0,0.83286582]
[1727975816601,0.330774,60482.0,60481.0,0.082674]
[1727975816808,0.330774,60482.0,60481.0,0.54285886]
[1727975817014,0.330774,60482.0,60481.0,0.65723742]
[1727975817312,0.330774,60482.0,60481.0,0.36209119]
[1727975817714,0.3608,60489.0,60481.0,0.27941719]
[1727975818012,0.3608,60489.0,60488.0,0.082665]
[1727975818013,0.082664,60489.0,60488.0,0.082665]
[1727975818214,0.08513962,60492.0,60491.0,0.082661]
[1727975818411,0.00248062,60492.0,60491.0,0.20868525]
[1727975818716,0.08513962,60492.0,60491.0,0.20868525]
[1727975819415,0.08513962,60492.0,60491.0,0.30672042]
[1727975819416,0.00248062,60492.0,60491.0,0.30672042]
[1727975819616,0.00248062,60492.0,60491.0,0.30667488]
[1727975819913,0.00448062,60492.0,60491.0,0.36207171]
[1727975820415,0.00448062,60492.0,60491.0,0.54282198]
[1727975820617,0.00848062,60492.0,60491.0,0.67406689]
[1727975820911,0.00848062,60492.0,60491.0,0.67437714]
[1727975821234,0.00848062,60492.0,60491.0,0.54382198]
[1727975821515,0.006,60492.0,60491.0,0.54382198]
[1727975821727,0.006,60492.0,60491.0,0.543749]
[1727975822307,0.006,60492.0,60491.0,0.36302304]
[1727975822616,0.006,60492.0,60491.0,0.3893361]
[1727975823816,0.006,60492.0,60491.0,0.10997406]
[1727975824226,0.006,60492.0,60491.0,0.083661]
[1727975825719,0.006,60492.0,60491.0,0.001]
[1727975825720,0.088659,60492.0,60491.0,0.001]
[1727975826222,1.184579,60492.0,60491.0,0.001]
[1727975826421,0.006,60492.0,60491.0,0.001]
[1727975826613,0.006,60492.0,60491.0,0.083661]
[1727975827422,0.584579,60492.0,60491.0,0.001]
[1727975828218,0.584579,60492.0,60476.0,0.04897141]
[1727975828219,1.46272,60492.0,60476.0,0.04897141]
[1727975828418,1.46272,60492.0,60473.0,0.06529521]
[1727975828419,0.082678,60480.0,60479.0,0.082676]
[1727975829813,0.082678,60480.0,60479.0,0.087676]
[1727975830011,0.082678,60480.0,60479.0,0.005]
[1727975830423,0.08268,60477.0,60476.0,0.01]
[1727975830720,0.37268,60477.0,60463.0,0.04897141]
[1727975830913,0.082691,60469.0,60468.0,0.082692]
[1727975831511,0.082686,60473.0,60472.0,0.082684]
[1727975832112,0.38329833,60477.0,60472.0,0.082684]
[1727975832313,0.082681,60476.0,60475.0,0.082681]
[1727975832512,0.082681,60476.0,60468.0,0.013]
[1727975832709,0.082681,60476.0,60472.0,0.082686]
[1727975832710,0.082686,60473.0,60472.0,0.082686]
[1727975832913,0.082686,60473.0,60472.0,0.095686]
[1727975833521,0.082686,60473.0,60472.0,0.090686]
[1727975834518,0.002,60476.0,60475.0,0.082682]
[1727975835213,0.001,60476.0,60475.0,0.082682]
[1727975835714,0.082685,60473.0,60472.0,0.007]
[1727975835913,0.082685,60473.0,60472.0,0.005]
[1727975836316,0.05931935,60476.0,60472.0,0.087687]
[1727975836520,0.3608,60477.0,60476.0,0.082681]
[1727975837818,0.3608,60477.0,60476.0,0.083681]
[1727975838319,0.44348,60477.0,60476.0,0.085681]
[1727975838621,0.50279734,60477.0,60476.0,0.085681]
[1727975838817,0.44348,60477.0,60476.0,0.085681]
[1727975839122,0.93956,60477.0,60476.0,0.003]
[1727975839331,1.82956,60477.0,60470.0,0.04897141]
[1727975839620,1.82956,60477.0,60468.0,0.082692]
[1727975839621,0.082691,60469.0,60468.0,0.082692]
[1727975840016,0.44348,60477.0,60472.0,0.082685]
[1727975840017,0.082687,60473.0,60472.0,0.082685]
[1727975841624,0.083687,60473.0,60472.0,0.007]
[1727975842418,0.083687,60473.0,60472.0,0.012]
[1727975843917,0.083687,60473.0,60472.0,0.094687]
[1727975844118,0.083687,60473.0,60472.0,0.012]
[1727975845922,0.579767,60473.0,60472.0,0.012]
[1727975846121,0.63909414,60473.0,60472.0,0.012]
[1727975846829,0.14301414,60473.0,60472.0,0.012]
[1727975847019,0.083687,60473.0,60472.0,0.012]
[1727975847720,0.083687,60473.0,60461.0,0.082699]
[1727975847721,0.082702,60462.0,60461.0,0.082699]
[1727975848818,0.082702,60462.0,60452.0,0.082712]
[1727975848819,0.082715,60453.0,60452.0,0.082712]
[1727975849124,0.082715,60453.0,60448.0,0.6508]
[1727975849125,0.082718,60451.0,60450.0,0.082716]
[1727975850029,0.082727,60444.0,60443.0,0.082726]
[1727975850226,0.068727,60444.0,60443.0,0.082726]
[1727975850829,0.34932714,60448.0,60440.0,0.08273]
[1727975850830,0.08273,60441.0,60440.0,0.08273]
[1727975852230,0.34932714,60448.0,60436.0,0.38379578]
[1727975852432,0.06032714,60451.0,60441.0,0.29]
[1727975852621,0.082715,60451.0,60450.0,0.082717]
[1727975853723,0.004,60451.0,60450.0,0.082717]
[1727975853918,0.03308519,60453.0,60450.0,0.04897141]
[1727975854228,0.082713,60453.0,60452.0,0.082714]
[1727975854431,0.3608,60457.0,60451.0,0.06529521]
[1727975854727,0.443507,60457.0,60456.0,0.14800321]
[1727975854930,0.443507,60457.0,60456.0,0.082708]
[1727975855132,0.443507,60457.0,60456.0,0.14800321]
[1727975855734,0.450507,60457.0,60456.0,0.14800321]
[1727975855930,0.450507,60457.0,60456.0,0.082708]
[1727975856234,0.443507,60457.0,60456.0,0.082708]
[1727975856535,0.457507,60457.0,60456.0,0.14900321]
[1727975857438,0.457507,60457.0,60456.0,0.083708]
[1727975857439,0.016,60457.0,60456.0,0.083708]
[1727975857830,0.016,60457.0,60456.0,0.2097793]
[1727975859038,1.483947,60457.0,60454.0,0.08152872]
[1727975859254,0.85594,60456.0,60453.0,0.04894083]
[1727975859428,0.85594,60456.0,60444.0,0.08152872]
[1727975859429,0.082719,60448.0,60444.0,0.08152872]
[1727975859630,0.082733,60438.0,60437.0,0.08152872]
[1727975859928,0.082719,60449.0,60436.0,0.08152872]
[1727975860128,0.082728,60442.0,60438.0,0.082732]
[1727975860330,0.3597,60456.0,60439.0,0.20764194]
[1727975860331,0.2427,60456.0,60439.0,0.20764194]
[1727975860532,0.08271,60455.0,60448.0,0.082718]
[1727975860748,0.082717,60450.0,60448.0,0.08152872]
[1727975861044,0.1157,60456.0,60445.0,0.082723]
[1727975861045,0.082719,60448.0,60445.0,0.082723]
[1727975861229,0.08272,60448.0,60445.0,0.082723]
[1727975861636,0.29,60447.0,60431.0,0.29]
[1727975861835,0.007,60438.0,60437.0,0.082734]
[1727975862439,0.08273,60441.0,60432.0,0.1155]
[1727975862628,0.082733,60439.0,60436.0,0.082735]
[1727975862826,0.082724,60445.0,60438.0,0.082732]
[1727975863039,0.082724,60445.0,60439.0,0.082732]
[1727975863040,0.08273,60440.0,60439.0,0.082732]
[1727975863240,0.082726,60443.0,60441.0,0.082728]
[1727975863443,0.082718,60449.0,60441.0,0.082728]
[1727975863740,0.29,60448.0,60433.0,0.082739]
[1727975864049,0.082737,60436.0,60435.0,0.082737]
[1727975864635,0.007,60443.0,60435.0,0.082737]
[1727975864942,0.082736,60436.0,60435.0,0.082737]
[1727975865438,0.082741,60432.0,60430.0,0.1171]
[1727975865648,0.082744,60430.0,60429.0,0.3608]
[1727975866235,0.082744,60430.0,60429.0,0.443545]
[1727975866544,0.082744,60430.0,60429.0,0.3608]
[1727975866840,0.082744,60430.0,60429.0,0.443545]
[1727975867236,0.082744,60430.0,60429.0,0.447545]
[1727975867538,0.082744,60430.0,60429.0,0.3648]
[1727975868140,0.082744,60430.0,60429.0,0.3668]
[1727975868745,0.082744,60430.0,60429.0,0.449545]
[1727975868944,0.08274,60434.0,60429.0,0.72916775]
[1727975869246,0.08274,60434.0,60431.0,0.09792584]
[1727975869446,0.23202871,60432.0,60430.0,0.09792584]
[1727975869648,0.082741,60432.0,60431.0,0.12612899]
[1727975869852,0.372741,60432.0,60431.0,0.2077691]
[1727975870040,0.372741,60432.0,60429.0,0.006]
[1727975870041,0.6508,60432.0,60429.0,0.08764011]
[1727975870243,0.082744,60430.0,60429.0,0.08764011]
[1727975870541,0.082744,60430.0,60429.0,0.13214437]
[1727975870750,0.082744,60430.0,60429.0,0.12814437]
[1727975871341,0.082744,60430.0,60429.0,0.002]
[1727975871546,0.082744,60430.0,60429.0,0.20976513]
[1727975871748,0.082744,60430.0,60429.0,0.20776513]
[1727975872251,0.579184,60430.0,60429.0,0.21376513]
[1727975872440,0.60133251,60430.0,60429.0,0.08761843]
[1727975872646,0.60133251,60430.0,60429.0,0.006]
[1727975872947,0.60133251,60430.0,60428.0,0.08161843]
[1727975872948,1.20133251,60430.0,60428.0,0.08161843]
[1727975873253,0.579185,60429.0,60428.0,0.08161843]
[1727975873548,1.582745,60429.0,60428.0,0.20776514]
[1727975873937,0.10489251,60430.0,60428.0,0.20776514]
[1727975874137,0.082745,60429.0,60428.0,0.08161843]
[1727975874341,0.082745,60429.0,60428.0,0.12614699]
[1727975874750,0.10489251,60430.0,60429.0,0.082745]
[1727975874953,0.3608,60438.0,60433.0,0.08274]
[1727975875244,0.3608,60438.0,60437.0,0.082734]
[1727975875449,0.3608,60438.0,60437.0,0.36239014]
[1727975876246,0.3638,60438.0,60437.0,0.36239014]
[1727975876554,0.3638,60438.0,60437.0,0.65753084]
[1727975876845,0.3728,60438.0,60437.0,0.65753084]
[1727975877435,0.3728,60438.0,60437.0,0.54327322]
[1727975878447,0.3688,60438.0,60437.0,0.54627322]
[1727975878648,0.31904832,60438.0,60437.0,0.54627322]
[1727975878841,0.31904832,60438.0,60437.0,0.67702597]
[1727975879149,0.31804832,60438.0,60437.0,0.54327322]
[1727975879352,0.31504832,60438.0,60437.0,0.54527322]
[1727975879856,1.41144832,60438.0,60437.0,0.28165614]
[1727975880038,1.41144832,60438.0,60437.0,0.22627111]
[1727975880239,1.41144832,60438.0,60437.0,0.12814699]
[1727975880443,0.082736,60436.0,60435.0,0.09812412]
[1727975880650,0.082736,60436.0,60425.0,0.3608]
[1727975880651,0.082737,60435.0,60434.0,0.09812412]
[1727975880849,0.372737,60435.0,60434.0,0.09812412]
[1727975881051,0.08274,60433.0,60432.0,0.09812412]
[1727975881249,0.082741,60432.0,60424.0,0.11444248]
[1727975881442,0.082741,60432.0,60431.0,0.09813206]
[1727975881643,0.372741,60432.0,60431.0,0.09811413]
[1727975881849,0.29,60432.0,60430.0,0.09811413]
[1727975882144,0.082743,60431.0,60430.0,0.09811413]
[1727975882853,0.002,60432.0,60424.0,0.11944248]
[1727975883039,0.002,60432.0,60425.0,0.44890119]
[1727975883236,0.082749,60429.0,60428.0,0.082745]
[1727975883437,0.082749,60429.0,60428.0,0.23627757]
[1727975883639,0.082749,60429.0,60428.0,0.23627719]
[1727975884042,0.082749,60429.0,60428.0,0.082745]
[1727975884249,0.083743,60432.0,60431.0,0.082743]
[1727975884443,0.082743,60432.0,60431.0,0.082743]
[1727975884642,0.29,60447.0,60430.0,0.003]
[1727975884857,0.082735,60439.0,60438.0,0.082732]
[1727975885048,0.1218,60448.0,60435.0,0.29]
[1727975885245,0.082722,60447.0,60446.0,0.082721]
[1727975885949,0.02304628,60450.0,60448.0,0.082719]
[1727975886252,0.3608,60453.0,60448.0,0.082719]
[1727975886843,0.3608,60453.0,60452.0,0.082714]
[1727975887748,0.443499,60464.0,60459.0,0.082703]
[1727975887942,0.443499,60464.0,60452.0,0.082714]
[1727975887943,0.082699,60463.0,60452.0,0.082714]
[1727975888154,0.3608,60464.0,60461.0,0.082701]
[1727975888343,0.3608,60464.0,60452.0,0.082714]
[1727975888545,0.3608,60464.0,60463.0,0.082699]
[1727975888740,0.6508,60471.0,60456.0,0.3608]
[1727975888945,0.082694,60467.0,60466.0,0.082694]
[1727975890348,0.090694,60467.0,60466.0,0.082694]
[1727975891049,0.008,60467.0,60466.0,0.082694]
[1727975891555,0.090693,60467.0,60466.0,0.082694]
[1727975891750,0.082693,60467.0,60466.0,0.082694]
[1727975891951,0.094693,60467.0,60466.0,0.082694]
[1727975892650,0.082707,60458.0,60457.0,0.082707]
[1727975892847,0.372707,60458.0,60457.0,0.082707]
[1727975894253,0.082711,60455.0,60454.0,0.082711]
[1727975894453,0.082711,60455.0,60444.0,0.3608]
[1727975894655,0.082711,60455.0,60450.0,0.082714]
[1727975894656,0.082716,60451.0,60450.0,0.082714]
[1727975894858,0.082722,60447.0,60439.0,0.1146]
[1727975895152,1.5,60455.0,60444.0,0.082725]
[1727975895153,0.372723,60445.0,60444.0,0.082725]
[1727975895551,0.082732,60441.0,60440.0,0.082729]
[1727975895758,0.372732,60441.0,60440.0,0.082729]
[1727975896253,0.082735,60437.0,60436.0,0.082734]
[1727975896559,0.29,60441.0,60430.0,0.1187]
[1727975896773,0.37273,60441.0,60440.0,0.08273]
[1727975896948,0.38373,60441.0,60440.0,0.08273]
[1727975897960,0.082736,60437.0,60435.0,0.082736]
[1727975898156,0.082735,60437.0,60436.0,0.082735]
[1727975898459,0.39173,60441.0,60430.0,0.1187]
[1727975898460,0.10173,60441.0,60440.0,0.08273]
[1727975898660,0.008,60441.0,60440.0,0.08273]
[1727975899158,0.00248227,60451.0,60450.0,0.082717]
[1727975899754,0.08519727,60451.0,60450.0,0.082717]